[Event "Titled Tuesday Blitz May 16 Late 2023"]
[White "Domingo Nunez, Ruben"]
[Black "Sanchez Enriquez, Oscar Gerardo"]
[WhiteFideId "22245570"]
[BlackFideId "5106311"]
[WhiteElo "2404"]
[BlackElo "2387"]
[Result "1-0"]
[Round "06"]
[TimeControl "180+2"]
[Date "2023.05.16"]
[WhiteClock "0:00:05"]
[BlackClock "0:00:00"]

1. c4 {[%clk 0:02:58]}  b6 {[%clk 0:02:56]} 2. b3 {[%clk 0:02:57]}  Bb7 {[%clk 0:02:56]} 3. Bb2 {[%clk 0:02:58]}  e6 {[%clk 0:02:57]} 4. Nf3 {[%clk 0:02:59]}  Nf6 {[%clk 0:02:57]} 5. g3 {[%clk 0:02:59]}  Be7 {[%clk 0:02:57]} 6. Bg2 {[%clk 0:03:00]}  O-O {[%clk 0:02:58]} 7. O-O {[%clk 0:03:01]}  a5 {[%clk 0:02:54]} 8. Nc3 {[%clk 0:03:01]}  d5 {[%clk 0:02:46]} 9. e3 {[%clk 0:02:55]}  Nbd7 {[%clk 0:02:29]} 10. Qe2 {[%clk 0:02:54]}  c5 {[%clk 0:02:26]} 11. Nb5 {[%clk 0:02:24]}  a4 {[%clk 0:02:19]} 12. d3 {[%clk 0:02:24]}  Bc6 {[%clk 0:02:11]} 13. Nc3 {[%clk 0:02:19]}  Qc7 {[%clk 0:01:55]} 14. Rfd1 {[%clk 0:02:15]}  Qb7 {[%clk 0:01:51]} 15. bxa4 {[%clk 0:02:10]}  d4 {[%clk 0:01:17]} 16. exd4 {[%clk 0:02:04]}  cxd4 {[%clk 0:01:18]} 17. Nb5 {[%clk 0:02:05]}  e5 {[%clk 0:01:18]} 18. Ne1 {[%clk 0:01:46]}  Bxg2 {[%clk 0:01:14]} 19. Nxg2 {[%clk 0:01:47]}  Rfe8 {[%clk 0:01:08]} 20. Ba3 {[%clk 0:01:17]}  Bxa3 {[%clk 0:01:00]} 21. Nxa3 {[%clk 0:01:18]}  Rxa4 {[%clk 0:01:00]} 22. Nb5 {[%clk 0:01:18]}  Qc6 {[%clk 0:00:56]} 23. Re1 {[%clk 0:01:14]}  h6 {[%clk 0:00:52]} 24. Nh4 {[%clk 0:01:14]}  e4 {[%clk 0:00:45]} 25. Nxd4 {[%clk 0:01:12]}  Qa8 {[%clk 0:00:30]} 26. dxe4 {[%clk 0:00:13]}  Rxe4 {[%clk 0:00:29]} 27. Qd2 {[%clk 0:00:13]}  Rxc4 {[%clk 0:00:26]} 28. Ndf5 {[%clk 0:00:13]}  Ne5 {[%clk 0:00:20]} 29. Nxg7 {[%clk 0:00:06]}  Rxe1+ {[%clk 0:00:04]} 30. Rxe1 {[%clk 0:00:06]}  Re4 {[%clk 0:00:04]} 31. Ngf5 {[%clk 0:00:05]}  Rxe1+ {[%clk 0:00:02]} 32. Qxe1 {[%clk 0:00:06]}  Qd5 {[%clk 0:00:00]} 33. Ne7+ {[%clk 0:00:05]} 1-0


[Site "https://www.chess.com"]

[Event "Titled Tuesday Blitz May 16 Late 2023"]
[White "Amburgy, Ryan"]
[Black "Safin, Robert"]
[WhiteFideId "30924820"]
[BlackFideId "34189120"]
[WhiteElo "2134"]
[BlackElo "2295"]
[Result "0-1"]
[Round "06"]
[TimeControl "180+2"]
[Date "2023.05.16"]
[WhiteClock "0:00:31"]
[BlackClock "0:00:57"]

1. d4 {[%clk 0:03:00]}  Nf6 {[%clk 0:02:58]} 2. c4 {[%clk 0:03:01]}  e6 {[%clk 0:02:58]} 3. Nf3 {[%clk 0:03:01]}  d5 {[%clk 0:02:57]} 4. Nc3 {[%clk 0:03:02]}  c5 {[%clk 0:02:57]} 5. cxd5 {[%clk 0:03:02]}  cxd4 {[%clk 0:02:56]} 6. Qa4+ {[%clk 0:02:58]}  Bd7 {[%clk 0:02:55]} 7. Qxd4 {[%clk 0:02:58]}  exd5 {[%clk 0:02:55]} 8. Nxd5 {[%clk 0:02:43]}  Qa5+ {[%clk 0:02:53]} 9. Nc3 {[%clk 0:02:43]}  Nc6 {[%clk 0:02:53]} 10. Qe3+ {[%clk 0:02:25]}  Be7 {[%clk 0:02:52]} 11. Bd2 {[%clk 0:02:26]}  O-O {[%clk 0:02:38]} 12. g3 {[%clk 0:02:23]}  Rfe8 {[%clk 0:02:33]} 13. Qg5 {[%clk 0:02:13]}  Qb6 {[%clk 0:02:27]} 14. Qb5 {[%clk 0:01:59]}  Qc7 {[%clk 0:01:52]} 15. Qb3 {[%clk 0:01:46]}  Bg4 {[%clk 0:01:42]} 16. Bg2 {[%clk 0:01:24]}  Bxf3 {[%clk 0:01:42]} 17. Nb5 {[%clk 0:01:25]}  Qe5 {[%clk 0:01:12]} 18. Bxf3 {[%clk 0:01:24]}  a6 {[%clk 0:01:13]} 19. Na3 {[%clk 0:00:39]}  Nd4 {[%clk 0:01:01]} 20. Qd3 {[%clk 0:00:39]}  Bxa3 {[%clk 0:00:58]} 21. bxa3 {[%clk 0:00:31]}  Nxf3+ {[%clk 0:00:57]} 0-1


[Site "https://www.chess.com"]

[Event "Titled Tuesday Blitz May 16 Late 2023"]
[White "benny_aizenberg"]
[Black "Karas, Marek"]
[BlackFideId "14928558"]
[WhiteElo "2673"]
[BlackElo "2233"]
[Result "1-0"]
[Round "06"]
[TimeControl "180+2"]
[Date "2023.05.16"]
[WhiteClock "0:00:35"]
[BlackClock "0:00:00"]

1. f4 {[%clk 0:03:00]}  d5 {[%clk 0:02:58]} 2. Nf3 {[%clk 0:03:00]}  Bg4 {[%clk 0:02:57]} 3. d4 {[%clk 0:02:52]}  Bxf3 {[%clk 0:02:55]} 4. exf3 {[%clk 0:02:52]}  Nf6 {[%clk 0:02:55]} 5. Be3 {[%clk 0:02:48]}  g6 {[%clk 0:02:49]} 6. Qd2 {[%clk 0:02:44]}  Bg7 {[%clk 0:02:48]} 7. Nc3 {[%clk 0:02:44]}  O-O {[%clk 0:02:48]} 8. O-O-O {[%clk 0:02:44]}  e6 {[%clk 0:02:39]} 9. g4 {[%clk 0:02:41]}  c5 {[%clk 0:02:36]} 10. dxc5 {[%clk 0:02:37]}  Nc6 {[%clk 0:02:35]} 11. Nb5 {[%clk 0:02:37]}  Nd7 {[%clk 0:02:31]} 12. f5 {[%clk 0:02:23]}  b6 {[%clk 0:02:15]} 13. cxb6 {[%clk 0:02:16]}  Nxb6 {[%clk 0:02:15]} 14. Bh6 {[%clk 0:01:57]}  Rb8 {[%clk 0:01:47]} 15. Bxg7 {[%clk 0:01:55]}  Kxg7 {[%clk 0:01:48]} 16. Qc3+ {[%clk 0:01:55]}  Qf6 {[%clk 0:01:44]} 17. Qxc6 {[%clk 0:01:52]}  Rfc8 {[%clk 0:01:30]} 18. Qd6 {[%clk 0:01:52]}  Na4 {[%clk 0:01:16]} 19. Qa3 {[%clk 0:01:49]}  Qg5+ {[%clk 0:00:43]} 20. Kb1 {[%clk 0:01:47]}  Nc5 {[%clk 0:00:44]} 21. fxe6 {[%clk 0:01:41]}  Nxe6 {[%clk 0:00:40]} 22. Qxa7 {[%clk 0:01:39]}  Qf4 {[%clk 0:00:33]} 23. Be2 {[%clk 0:01:28]}  Ra8 {[%clk 0:00:27]} 24. Qf2 {[%clk 0:01:17]}  Qa4 {[%clk 0:00:28]} 25. Na3 {[%clk 0:00:50]}  Qb4 {[%clk 0:00:12]} 26. Rd3 {[%clk 0:00:48]}  Rab8 {[%clk 0:00:06]} 27. Rb3 {[%clk 0:00:47]}  Qd6 {[%clk 0:00:04]} 28. Rd1 {[%clk 0:00:46]}  Nc5 {[%clk 0:00:04]} 29. Rxb8 {[%clk 0:00:44]}  Rxb8 {[%clk 0:00:05]} 30. Qd4+ {[%clk 0:00:44]}  Kg8 {[%clk 0:00:05]} 31. Nc4 {[%clk 0:00:43]}  Qe7 {[%clk 0:00:04]} 32. Ne5 {[%clk 0:00:41]}  Qb7 {[%clk 0:00:02]} 33. b3 {[%clk 0:00:39]}  Ne6 {[%clk 0:00:02]} 34. Qxd5 {[%clk 0:00:39]}  Qc7 {[%clk 0:00:02]} 35. Nd7 {[%clk 0:00:38]}  Rd8 {[%clk 0:00:00]} 36. Bb5 {[%clk 0:00:35]} 1-0


[Site "https://www.chess.com"]

[Event "Titled Tuesday Blitz May 16 Late 2023"]
[White "Mendez Fortes, Eduardo Jesus"]
[Black "WindWhistler11"]
[WhiteFideId "3502376"]
[WhiteElo "2307"]
[BlackElo "2517"]
[Result "0-1"]
[Round "06"]
[TimeControl "180+2"]
[Date "2023.05.16"]
[WhiteClock "0:01:25"]
[BlackClock "0:00:25"]

1. e4 {[%clk 0:03:00]}  e6 {[%clk 0:02:55]} 2. d4 {[%clk 0:03:00]}  d5 {[%clk 0:02:55]} 3. Nd2 {[%clk 0:03:01]}  Nc6 {[%clk 0:02:50]} 4. Ngf3 {[%clk 0:03:01]}  Nf6 {[%clk 0:02:50]} 5. e5 {[%clk 0:03:00]}  Nd7 {[%clk 0:02:51]} 6. Nb3 {[%clk 0:03:01]}  a5 {[%clk 0:02:49]} 7. a4 {[%clk 0:03:01]}  f6 {[%clk 0:02:46]} 8. exf6 {[%clk 0:03:01]}  Qxf6 {[%clk 0:02:45]} 9. Bb5 {[%clk 0:03:01]}  Na7 {[%clk 0:02:44]} 10. Bd3 {[%clk 0:03:01]}  b6 {[%clk 0:02:37]} 11. O-O {[%clk 0:03:00]}  Bd6 {[%clk 0:02:36]} 12. Bg5 {[%clk 0:02:58]}  Qf7 {[%clk 0:02:36]} 13. Bh4 {[%clk 0:02:58]}  h6 {[%clk 0:02:34]} 14. Bg3 {[%clk 0:02:57]}  O-O {[%clk 0:02:31]} 15. Re1 {[%clk 0:02:52]}  Bxg3 {[%clk 0:02:17]} 16. hxg3 {[%clk 0:02:51]}  c5 {[%clk 0:02:18]} 17. dxc5 {[%clk 0:02:51]}  bxc5 {[%clk 0:02:18]} 18. c4 {[%clk 0:02:51]}  Nc6 {[%clk 0:02:10]} 19. Rc1 {[%clk 0:02:48]}  d4 {[%clk 0:01:49]} 20. Nbd2 {[%clk 0:02:45]}  Rb8 {[%clk 0:01:43]} 21. b3 {[%clk 0:02:40]}  e5 {[%clk 0:01:30]} 22. Ne4 {[%clk 0:02:39]}  Qe7 {[%clk 0:01:12]} 23. Nh2 {[%clk 0:02:35]}  Nb4 {[%clk 0:01:07]} 24. Bb1 {[%clk 0:02:34]}  Nf6 {[%clk 0:01:06]} 25. Nd2 {[%clk 0:02:25]}  Bb7 {[%clk 0:00:56]} 26. Nhf3 {[%clk 0:02:22]}  Ng4 {[%clk 0:00:53]} 27. Ne4 {[%clk 0:02:10]}  Qf7 {[%clk 0:00:48]} 28. Nd6 {[%clk 0:02:07]}  Qh5 {[%clk 0:00:47]} 29. Nxb7 {[%clk 0:02:05]}  Rxb7 {[%clk 0:00:40]} 30. Be4 {[%clk 0:02:03]}  Rbf7 {[%clk 0:00:37]} 31. Qd2 {[%clk 0:02:03]}  d3 {[%clk 0:00:32]} 32. Re3 {[%clk 0:01:28]}  Rxf3 {[%clk 0:00:26]} 33. Rxd3 {[%clk 0:01:24]}  Qh2+ {[%clk 0:00:24]} 34. Kf1 {[%clk 0:01:25]}  Qh1+ {[%clk 0:00:24]} 35. Ke2 {[%clk 0:01:25]}  Rxf2# {[%clk 0:00:25]} 0-1


[Site "https://www.chess.com"]

[Event "Titled Tuesday Blitz May 16 Late 2023"]
[White "Przybylski, Wojciech"]
[Black "Camilla_Lee"]
[WhiteFideId "1117599"]
[WhiteElo "2222"]
[BlackElo "2627"]
[Result "1/2-1/2"]
[Round "06"]
[TimeControl "180+2"]
[Date "2023.05.16"]
[WhiteClock "0:00:03"]
[BlackClock "0:00:02"]

1. e4 {[%clk 0:03:00]}  e5 {[%clk 0:02:59]} 2. Nf3 {[%clk 0:02:48]}  Nc6 {[%clk 0:02:59]} 3. d4 {[%clk 0:02:45]}  exd4 {[%clk 0:02:59]} 4. Nxd4 {[%clk 0:02:45]}  Nf6 {[%clk 0:02:59]} 5. Nc3 {[%clk 0:02:45]}  Bb4 {[%clk 0:02:59]} 6. Nxc6 {[%clk 0:02:44]}  bxc6 {[%clk 0:03:00]} 7. Bd3 {[%clk 0:02:44]}  d5 {[%clk 0:03:00]} 8. O-O {[%clk 0:02:44]}  Bxc3 {[%clk 0:02:44]} 9. bxc3 {[%clk 0:02:44]}  dxe4 {[%clk 0:02:44]} 10. Bc4 {[%clk 0:02:40]}  O-O {[%clk 0:02:43]} 11. Qxd8 {[%clk 0:02:20]}  Rxd8 {[%clk 0:02:42]} 12. Bf4 {[%clk 0:02:18]}  Nd5 {[%clk 0:02:38]} 13. Bxd5 {[%clk 0:02:10]}  cxd5 {[%clk 0:02:37]} 14. Bxc7 {[%clk 0:02:10]}  Rd7 {[%clk 0:02:37]} 15. Be5 {[%clk 0:02:08]}  Ba6 {[%clk 0:02:34]} 16. Rfb1 {[%clk 0:02:06]}  f6 {[%clk 0:02:31]} 17. Bd4 {[%clk 0:02:06]}  Bc4 {[%clk 0:02:31]} 18. Rb2 {[%clk 0:02:01]}  a6 {[%clk 0:02:18]} 19. a4 {[%clk 0:02:01]}  Kf7 {[%clk 0:02:15]} 20. Rab1 {[%clk 0:01:48]}  Rc8 {[%clk 0:02:14]} 21. h4 {[%clk 0:01:45]}  h5 {[%clk 0:02:13]} 22. Be3 {[%clk 0:01:42]}  Rc6 {[%clk 0:02:03]} 23. Rb6 {[%clk 0:01:40]}  Rxb6 {[%clk 0:02:01]} 24. Rxb6 {[%clk 0:01:40]}  Be2 {[%clk 0:01:56]} 25. Bd4 {[%clk 0:01:35]}  Kg6 {[%clk 0:01:47]} 26. Kh2 {[%clk 0:01:29]}  Kf5 {[%clk 0:01:45]} 27. Kg3 {[%clk 0:01:28]}  Rd8 {[%clk 0:01:36]} 28. Rb7 {[%clk 0:01:17]}  Kg6 {[%clk 0:01:12]} 29. Kf4 {[%clk 0:01:15]}  Bd1 {[%clk 0:01:07]} 30. Rb2 {[%clk 0:01:12]}  Rc8 {[%clk 0:00:59]} 31. f3 {[%clk 0:01:01]}  exf3 {[%clk 0:00:58]} 32. gxf3 {[%clk 0:01:01]}  Be2 {[%clk 0:00:57]} 33. Rb6 {[%clk 0:00:57]}  Re8 {[%clk 0:00:54]} 34. Rb1 {[%clk 0:00:53]}  Bc4 {[%clk 0:00:52]} 35. Be3 {[%clk 0:00:47]}  Re5 {[%clk 0:00:50]} 36. Bd4 {[%clk 0:00:42]}  Re2 {[%clk 0:00:49]} 37. Rc1 {[%clk 0:00:39]}  Rg2 {[%clk 0:00:45]} 38. Bb6 {[%clk 0:00:19]}  Kf7 {[%clk 0:00:41]} 39. Bc5 {[%clk 0:00:11]}  g5+ {[%clk 0:00:21]} 40. hxg5 {[%clk 0:00:11]}  Rxg5 {[%clk 0:00:21]} 41. Bf2 {[%clk 0:00:05]}  Kg6 {[%clk 0:00:20]} 42. Rb1 {[%clk 0:00:04]}  Rf5+ {[%clk 0:00:20]} 43. Ke3 {[%clk 0:00:04]}  Re5+ {[%clk 0:00:17]} 44. Kf4 {[%clk 0:00:04]}  Re2 {[%clk 0:00:15]} 45. Bd4 {[%clk 0:00:04]}  Re6 {[%clk 0:00:14]} 46. Rg1+ {[%clk 0:00:03]}  Kf7 {[%clk 0:00:14]} 47. Kf5 {[%clk 0:00:04]}  Re2 {[%clk 0:00:11]} 48. Rh1 {[%clk 0:00:04]}  Rxc2 {[%clk 0:00:10]} 49. Rxh5 {[%clk 0:00:03]}  Bd3+ {[%clk 0:00:11]} 50. Kf4 {[%clk 0:00:04]}  Ra2 {[%clk 0:00:10]} 51. Rh6 {[%clk 0:00:04]}  Bg6 {[%clk 0:00:10]} 52. Rh8 {[%clk 0:00:04]}  Rxa4 {[%clk 0:00:10]} 53. Ra8 {[%clk 0:00:04]}  Ra2 {[%clk 0:00:09]} 54. Rd8 {[%clk 0:00:04]}  Ra5 {[%clk 0:00:08]} 55. Rd6 {[%clk 0:00:03]}  Bd3 {[%clk 0:00:05]} 56. Rxf6+ {[%clk 0:00:03]}  Ke7 {[%clk 0:00:05]} 57. Rb6 {[%clk 0:00:03]}  Ra2 {[%clk 0:00:04]} 58. Ke5 {[%clk 0:00:03]}  Bc4 {[%clk 0:00:04]} 59. Kf4 {[%clk 0:00:03]}  Re2 {[%clk 0:00:04]} 60. Bc5+ {[%clk 0:00:02]}  Kd7 {[%clk 0:00:04]} 61. Kg5 {[%clk 0:00:03]}  Rg2+ {[%clk 0:00:04]} 62. Kf5 {[%clk 0:00:02]}  Rg3 {[%clk 0:00:04]} 63. f4 {[%clk 0:00:03]}  Rxc3 {[%clk 0:00:04]} 64. Bd4 {[%clk 0:00:03]}  Rf3 {[%clk 0:00:04]} 65. Ke5 {[%clk 0:00:03]}  Kc7 {[%clk 0:00:04]} 66. Rh6 {[%clk 0:00:03]}  Rf1 {[%clk 0:00:01]} 67. Rh7+ {[%clk 0:00:03]}  Kc6 {[%clk 0:00:02]} 68. Rh6+ {[%clk 0:00:03]}  Kb5 {[%clk 0:00:02]} 69. Rb6+ {[%clk 0:00:03]}  Ka4 {[%clk 0:00:03]} 70. Rb2 {[%clk 0:00:03]}  Bb3 {[%clk 0:00:03]} 71. f5 {[%clk 0:00:03]}  Kb4 {[%clk 0:00:02]} 72. f6 {[%clk 0:00:03]}  a5 {[%clk 0:00:03]} 73. Rh2 {[%clk 0:00:02]}  Re1+ {[%clk 0:00:01]} 74. Kd6 {[%clk 0:00:02]}  Rf1 {[%clk 0:00:02]} 75. Be5 {[%clk 0:00:02]}  d4 {[%clk 0:00:02]} 76. Rh4 {[%clk 0:00:02]}  Kc3 {[%clk 0:00:02]} 77. Rxd4 {[%clk 0:00:02]}  Kc2 {[%clk 0:00:02]} 78. Re4 {[%clk 0:00:02]}  a4 {[%clk 0:00:02]} 79. Re2+ {[%clk 0:00:02]}  Kd3 {[%clk 0:00:03]} 80. Rg2 {[%clk 0:00:03]}  a3 {[%clk 0:00:02]} 81. Rg3+ {[%clk 0:00:03]}  Kc4 {[%clk 0:00:02]} 82. Rc3+ {[%clk 0:00:03]}  Kb4 {[%clk 0:00:03]} 83. Rc8 {[%clk 0:00:03]}  a2 {[%clk 0:00:03]} 84. Rb8+ {[%clk 0:00:03]}  Kc4 {[%clk 0:00:03]} 85. Rc8+ {[%clk 0:00:03]}  Kb4 {[%clk 0:00:02]} 86. Rb8+ {[%clk 0:00:04]}  Kc4 {[%clk 0:00:03]} 87. Ra8 {[%clk 0:00:04]}  Kd3 {[%clk 0:00:03]} 88. Ra3 {[%clk 0:00:03]}  Kc2 {[%clk 0:00:02]} 89. Ke7 {[%clk 0:00:03]}  Re1 {[%clk 0:00:02]} 90. Kd6 {[%clk 0:00:03]}  Rf1 {[%clk 0:00:02]} 91. Ra7 {[%clk 0:00:03]}  Kd3 {[%clk 0:00:02]} 92. Ra3 {[%clk 0:00:03]}  Kc2 {[%clk 0:00:02]} 1/2-1/2


[Site "https://www.chess.com"]

[Event "Titled Tuesday Blitz May 16 Late 2023"]
[White "Fishbein, Alexander"]
[Black "Martic, Ivan"]
[WhiteFideId "2000377"]
[BlackFideId "929301"]
[WhiteElo "2415"]
[BlackElo "2360"]
[Result "1-0"]
[Round "06"]
[TimeControl "180+2"]
[Date "2023.05.16"]
[WhiteClock "0:00:35"]
[BlackClock "0:01:39"]

1. e4 {[%clk 0:03:00]}  c5 {[%clk 0:02:55]} 2. Nf3 {[%clk 0:03:00]}  e6 {[%clk 0:02:54]} 3. d4 {[%clk 0:02:59]}  cxd4 {[%clk 0:02:55]} 4. Nxd4 {[%clk 0:02:59]}  Nc6 {[%clk 0:02:54]} 5. Nc3 {[%clk 0:02:59]}  d6 {[%clk 0:02:55]} 6. Be2 {[%clk 0:02:59]}  Nf6 {[%clk 0:02:55]} 7. Be3 {[%clk 0:02:58]}  Be7 {[%clk 0:02:55]} 8. O-O {[%clk 0:02:59]}  O-O {[%clk 0:02:55]} 9. f4 {[%clk 0:02:59]}  a6 {[%clk 0:02:55]} 10. a4 {[%clk 0:02:59]}  Qc7 {[%clk 0:02:54]} 11. Kh1 {[%clk 0:02:57]}  Re8 {[%clk 0:02:52]} 12. Bf3 {[%clk 0:02:56]}  Rb8 {[%clk 0:02:51]} 13. g4 {[%clk 0:02:56]}  Nxd4 {[%clk 0:02:51]} 14. Bxd4 {[%clk 0:02:55]}  e5 {[%clk 0:02:51]} 15. fxe5 {[%clk 0:02:55]}  dxe5 {[%clk 0:02:52]} 16. Ba7 {[%clk 0:02:54]}  Ra8 {[%clk 0:02:50]} 17. g5 {[%clk 0:02:54]}  Rxa7 {[%clk 0:02:28]} 18. gxf6 {[%clk 0:02:53]}  Bxf6 {[%clk 0:02:28]} 19. Nd5 {[%clk 0:02:45]}  Qd8 {[%clk 0:02:26]} 20. Bh5 {[%clk 0:02:34]}  Be6 {[%clk 0:02:20]} 21. Nxf6+ {[%clk 0:01:40]}  gxf6 {[%clk 0:02:21]} 22. Qe1 {[%clk 0:01:28]}  b6 {[%clk 0:02:04]} 23. Rd1 {[%clk 0:01:24]}  Qe7 {[%clk 0:01:57]} 24. Rg1+ {[%clk 0:01:19]}  Kh8 {[%clk 0:01:57]} 25. Qg3 {[%clk 0:01:18]}  Qf8 {[%clk 0:01:57]} 26. a5 {[%clk 0:01:04]}  bxa5 {[%clk 0:01:52]} 27. Qf2 {[%clk 0:01:03]}  Qh6 {[%clk 0:01:48]} 28. Qxa7 {[%clk 0:00:57]}  Qxh5 {[%clk 0:01:47]} 29. Qf2 {[%clk 0:00:56]}  f5 {[%clk 0:01:42]} 30. Qg3 {[%clk 0:00:52]}  Qh6 {[%clk 0:01:41]} 31. Qxe5+ {[%clk 0:00:50]}  f6 {[%clk 0:01:39]} 32. Qxe6 {[%clk 0:00:35]} 1-0


[Site "https://www.chess.com"]

[Event "Titled Tuesday Blitz May 16 Late 2023"]
[White "Ognean, Mihnea-Ionut"]
[Black "Manukyan, Sargis A."]
[WhiteFideId "1232347"]
[BlackFideId "13303970"]
[WhiteElo "2215"]
[BlackElo "2187"]
[Result "0-1"]
[Round "06"]
[TimeControl "180+2"]
[Date "2023.05.16"]
[WhiteClock "0:01:43"]
[BlackClock "0:02:06"]

1. Nf3 {[%clk 0:03:00]}  d5 {[%clk 0:03:00]} 2. d4 {[%clk 0:03:00]}  Nf6 {[%clk 0:02:59]} 3. c4 {[%clk 0:03:01]}  e6 {[%clk 0:02:59]} 4. e3 {[%clk 0:03:00]}  Be7 {[%clk 0:02:58]} 5. b3 {[%clk 0:02:56]}  O-O {[%clk 0:02:58]} 6. Bb2 {[%clk 0:02:57]}  b6 {[%clk 0:02:59]} 7. Nc3 {[%clk 0:02:55]}  Bb7 {[%clk 0:03:00]} 8. Bd3 {[%clk 0:02:55]}  Ne4 {[%clk 0:03:00]} 9. Qc2 {[%clk 0:02:53]}  f5 {[%clk 0:03:00]} 10. O-O {[%clk 0:02:48]}  a6 {[%clk 0:03:00]} 11. Ne2 {[%clk 0:02:48]}  g5 {[%clk 0:02:53]} 12. Ne5 {[%clk 0:02:43]}  Nd7 {[%clk 0:02:53]} 13. f3 {[%clk 0:02:43]}  Nxe5 {[%clk 0:02:49]} 14. dxe5 {[%clk 0:02:43]}  Nc5 {[%clk 0:02:49]} 15. Rad1 {[%clk 0:02:28]}  Nxd3 {[%clk 0:02:48]} 16. Qxd3 {[%clk 0:02:26]}  Qe8 {[%clk 0:02:43]} 17. cxd5 {[%clk 0:02:09]}  Bxd5 {[%clk 0:02:43]} 18. Nc3 {[%clk 0:02:06]}  Bc6 {[%clk 0:02:40]} 19. Qc4 {[%clk 0:02:05]}  Bc5 {[%clk 0:02:38]} 20. Rfe1 {[%clk 0:02:03]}  Qe7 {[%clk 0:02:30]} 21. Na4 {[%clk 0:01:56]}  Bxa4 {[%clk 0:02:21]} 22. Qxa4 {[%clk 0:01:55]}  b5 {[%clk 0:02:20]} 23. Qa5 {[%clk 0:01:49]}  Bb4 {[%clk 0:02:19]} 24. Ba3 {[%clk 0:01:49]}  Bxa3 {[%clk 0:02:12]} 25. Rd4 {[%clk 0:01:49]}  Bc5 {[%clk 0:02:06]} 26. Rc1 {[%clk 0:01:43]}  Bxd4 {[%clk 0:02:06]} 0-1


[Site "https://www.chess.com"]

[Event "Titled Tuesday Blitz May 16 Late 2023"]
[White "Eugene, Floryan"]
[Black "ElDivis"]
[WhiteFideId "20694784"]
[WhiteElo "2369"]
[BlackElo "2488"]
[Result "0-1"]
[Round "06"]
[TimeControl "180+2"]
[Date "2023.05.16"]
[WhiteClock "0:01:03"]
[BlackClock "0:00:30"]

1. e4 {[%clk 0:03:00]}  c5 {[%clk 0:02:56]} 2. Nf3 {[%clk 0:03:00]}  d6 {[%clk 0:02:56]} 3. c3 {[%clk 0:03:00]}  Nf6 {[%clk 0:02:56]} 4. Be2 {[%clk 0:03:01]}  Nbd7 {[%clk 0:02:52]} 5. d3 {[%clk 0:02:59]}  g6 {[%clk 0:02:52]} 6. O-O {[%clk 0:02:59]}  Bg7 {[%clk 0:02:52]} 7. Re1 {[%clk 0:03:00]}  O-O {[%clk 0:02:52]} 8. Bf1 {[%clk 0:03:01]}  e5 {[%clk 0:02:46]} 9. a4 {[%clk 0:02:58]}  Re8 {[%clk 0:02:45]} 10. Bg5 {[%clk 0:02:58]}  h6 {[%clk 0:02:45]} 11. Bxf6 {[%clk 0:02:59]}  Nxf6 {[%clk 0:02:43]} 12. c4 {[%clk 0:02:59]}  Nh5 {[%clk 0:02:41]} 13. Nc3 {[%clk 0:02:58]}  Nf4 {[%clk 0:02:40]} 14. g3 {[%clk 0:02:57]}  Nh3+ {[%clk 0:02:34]} 15. Kg2 {[%clk 0:02:55]}  Rf8 {[%clk 0:02:19]} 16. Nd5 {[%clk 0:02:49]}  f5 {[%clk 0:02:18]} 17. exf5 {[%clk 0:02:41]}  Bxf5 {[%clk 0:02:17]} 18. Ne3 {[%clk 0:02:24]}  Qd7 {[%clk 0:02:05]} 19. Re2 {[%clk 0:02:15]}  e4 {[%clk 0:01:47]} 20. Ng1 {[%clk 0:02:06]}  exd3 {[%clk 0:01:42]} 21. Rd2 {[%clk 0:02:02]}  Be4+ {[%clk 0:01:28]} 22. f3 {[%clk 0:01:57]}  Rxf3 {[%clk 0:01:27]} 23. Nxf3 {[%clk 0:01:50]}  Rf8 {[%clk 0:01:22]} 24. Bxd3 {[%clk 0:01:15]}  Bxf3+ {[%clk 0:01:15]} 25. Qxf3 {[%clk 0:01:16]}  Rxf3 {[%clk 0:01:15]} 26. Kxf3 {[%clk 0:01:17]}  Ng5+ {[%clk 0:01:13]} 27. Kg2 {[%clk 0:01:15]}  Bd4 {[%clk 0:01:01]} 28. Nd5 {[%clk 0:01:13]}  Qh3+ {[%clk 0:00:50]} 29. Kh1 {[%clk 0:01:13]}  Nf3 {[%clk 0:00:38]} 30. Re2 {[%clk 0:01:10]}  Ne5 {[%clk 0:00:39]} 31. Be4 {[%clk 0:01:04]}  Ng4 {[%clk 0:00:31]} 32. Rf1 {[%clk 0:01:03]}  Qxf1# {[%clk 0:00:30]} 0-1


[Site "https://www.chess.com"]

[Event "Titled Tuesday Blitz May 16 Late 2023"]
[White "chess123456s"]
[Black "Kaplan, Avi Harrison"]
[BlackFideId "30934559"]
[WhiteElo "2612"]
[BlackElo "1983"]
[Result "1-0"]
[Round "06"]
[TimeControl "180+2"]
[Date "2023.05.16"]
[WhiteClock "0:00:13"]
[BlackClock "0:00:03"]

1. e4 {[%clk 0:03:00]}  g6 {[%clk 0:02:56]} 2. d4 {[%clk 0:03:00]}  Bg7 {[%clk 0:02:57]} 3. Nc3 {[%clk 0:03:01]}  d6 {[%clk 0:02:57]} 4. f4 {[%clk 0:03:01]}  Nc6 {[%clk 0:02:57]} 5. Nf3 {[%clk 0:02:58]}  Bg4 {[%clk 0:02:57]} 6. d5 {[%clk 0:02:46]}  Nd4 {[%clk 0:02:54]} 7. Be2 {[%clk 0:02:44]}  Nxe2 {[%clk 0:02:53]} 8. Qxe2 {[%clk 0:02:44]}  h5 {[%clk 0:02:51]} 9. h3 {[%clk 0:02:44]}  Bd7 {[%clk 0:02:50]} 10. Be3 {[%clk 0:02:42]}  c6 {[%clk 0:02:49]} 11. dxc6 {[%clk 0:02:40]}  bxc6 {[%clk 0:02:50]} 12. Bd4 {[%clk 0:02:40]}  Bxd4 {[%clk 0:02:45]} 13. Nxd4 {[%clk 0:02:39]}  Qb6 {[%clk 0:02:42]} 14. Nb3 {[%clk 0:02:39]}  Nh6 {[%clk 0:02:17]} 15. O-O-O {[%clk 0:02:35]}  a5 {[%clk 0:02:17]} 16. a4 {[%clk 0:02:34]}  O-O {[%clk 0:02:16]} 17. f5 {[%clk 0:02:33]}  Rab8 {[%clk 0:01:49]} 18. f6 {[%clk 0:02:16]}  exf6 {[%clk 0:01:42]} 19. Rxd6 {[%clk 0:02:14]}  Be6 {[%clk 0:01:41]} 20. Nd5 {[%clk 0:01:46]}  Qa7 {[%clk 0:01:40]} 21. Rxc6 {[%clk 0:01:33]}  Rfc8 {[%clk 0:01:36]} 22. Rxc8+ {[%clk 0:01:25]}  Rxc8 {[%clk 0:01:37]} 23. Nxf6+ {[%clk 0:01:24]}  Kg7 {[%clk 0:01:37]} 24. Nd5 {[%clk 0:01:24]}  Qd7 {[%clk 0:01:28]} 25. Nb6 {[%clk 0:01:10]}  Qc7 {[%clk 0:01:09]} 26. Nxc8 {[%clk 0:01:10]}  Bxb3 {[%clk 0:01:09]} 27. Nb6 {[%clk 0:01:01]}  Be6 {[%clk 0:00:41]} 28. Nd5 {[%clk 0:01:00]}  Qc6 {[%clk 0:00:29]} 29. Kb1 {[%clk 0:00:46]}  Qxa4 {[%clk 0:00:23]} 30. Qd3 {[%clk 0:00:45]}  Ng8 {[%clk 0:00:07]} 31. Rf1 {[%clk 0:00:43]}  Kh7 {[%clk 0:00:07]} 32. Qc3 {[%clk 0:00:39]}  Qd7 {[%clk 0:00:04]} 33. Nf6+ {[%clk 0:00:37]}  Nxf6 {[%clk 0:00:05]} 34. Qxf6 {[%clk 0:00:37]}  a4 {[%clk 0:00:05]} 35. Qc3 {[%clk 0:00:34]}  Qb5 {[%clk 0:00:06]} 36. Re1 {[%clk 0:00:28]}  Kg8 {[%clk 0:00:03]} 37. Qd3 {[%clk 0:00:25]}  Qb4 {[%clk 0:00:02]} 38. Qc3 {[%clk 0:00:22]}  Qb5 {[%clk 0:00:02]} 39. Rd1 {[%clk 0:00:22]}  Kh7 {[%clk 0:00:02]} 40. g4 {[%clk 0:00:18]}  h4 {[%clk 0:00:01]} 41. Qf6 {[%clk 0:00:17]}  Qc4 {[%clk 0:00:02]} 42. Qxh4+ {[%clk 0:00:17]}  Kg7 {[%clk 0:00:01]} 43. e5 {[%clk 0:00:11]}  Qa2+ {[%clk 0:00:02]} 44. Kc1 {[%clk 0:00:11]}  Qxb2+ {[%clk 0:00:03]} 45. Kxb2 {[%clk 0:00:11]}  Bc4 {[%clk 0:00:03]} 46. Qf6+ {[%clk 0:00:11]}  Kh7 {[%clk 0:00:03]} 47. Rd8 {[%clk 0:00:12]}  g5 {[%clk 0:00:03]} 48. Rh8# {[%clk 0:00:13]} 1-0


[Site "https://www.chess.com"]